bitfinex/quotes_ETHUSD_20241119
["timestamp","ask_amount","ask_price","bid_price","bid_amount"]
[1732028073435,1.3532579,3105.2,3104.8,3.22074]
[1732028073875,1.3532579,3105.2,3104.7,3.22088]
[1732028074178,1.3532579,3105.2,3104.8,3.2208]
[1732028074364,1.3532579,3105.2,3105.0,3.22053]
[1732028074686,0.01,3105.2,3105.0,3.22053]
[1732028075144,0.01,3105.2,3104.9,3.22066]
[1732028075347,1.3432579,3105.1,3104.8,3.22076]
[1732028075756,1.3432579,3105.1,3104.8,6.44149]
[1732028076054,0.01,3105.0,3104.8,3.22073]
[1732028076264,1.3532579,3105.0,3104.7,3.2209]
[1732028076452,0.01,3105.0,3104.7,3.2209]
[1732028076772,1.3432579,3105.1,3104.1,3.22152]
[1732028076773,0.01,3104.5,3104.1,3.22152]
[1732028077140,0.01,3104.3,3103.9,4.13807]
[1732028077359,0.01,3104.3,3103.8,0.64585499]
[1732028077360,0.01,3103.9,3103.8,0.64585499]
[1732028077610,1.34447148,3104.4,3103.9,3.22175]
[1732028077611,1.35447148,3104.1,3103.9,3.22175]
[1732028077893,1.76337148,3104.5,3104.3,3.22133]
[1732028078053,2.01173636,3104.6,3104.3,3.22133]
[1732028078054,0.01,3104.4,3104.3,3.22133]
[1732028078278,0.01,3104.4,3104.1,3.22146]
[1732028078510,0.01,3104.4,3104.2,3.22141]
[1732028078725,0.01,3104.4,3104.3,3.22133]
[1732028079021,0.01,3104.4,3104.1,3.2215]
[1732028079206,0.01,3104.4,3104.3,3.22133]
[1732028079411,0.01,3104.6,3104.3,3.22133]
[1732028079570,0.01,3104.4,3104.3,3.22133]
[1732028080225,1.34447148,3104.7,3104.1,0.3543675]
[1732028080379,1.35447148,3104.8,3104.4,3.22123]
[1732028080820,1.35447148,3104.8,3104.4,3.22116]
[1732028081134,0.01,3104.8,3104.4,3.22116]
[1732028081327,0.01,3104.5,3104.2,3.22135]
[1732028081613,1.35447148,3104.8,3104.6,3.22102]
[1732028081830,0.01,3104.8,3104.6,3.22102]
[1732028082507,0.01,3104.8,3104.4,3.22115]
[1732028082704,0.01,3104.5,3104.2,3.22135]
[1732028082904,0.01,3104.5,3104.4,3.22123]
[1732028083598,0.01,3104.5,3104.2,3.22135]
[1732028083982,0.01,3104.3,3104.2,3.22135]
[1732028084469,1.34447148,3104.7,3104.4,3.22123]
[1732028084679,0.01,3104.5,3104.4,3.22123]
[1732028084872,0.01,3104.5,3104.2,3.22134]
[1732028085067,0.01,3104.5,3104.4,3.22123]
[1732028085284,0.01,3104.5,3104.2,3.22134]
[1732028085285,0.01,3104.5,3104.2,3.22137]
[1732028085610,0.01,3104.5,3104.4,3.22123]
[1732028086528,0.01,3104.5,3104.2,3.22137]
[1732028087081,0.01,3104.5,3104.1,3.22147]
[1732028087419,0.01,3104.5,3104.4,3.22123]
[1732028087788,0.01,3104.5,3104.2,3.22135]
[1732028087988,0.01,3104.5,3104.3,3.22132]
[1732028088301,1.35447148,3104.7,3104.6,3.22102]
[1732028088701,1.34447148,3104.8,3104.7,3.22092]
[1732028089017,0.01,3104.9,3104.6,3.22096]
[1732028089181,0.01,3104.9,3104.8,3.22081]
[1732028089710,0.01,3105.2,3105.1,3.2205]
[1732028089895,3.21969,3105.9,3104.8,0.644173]
[1732028089896,0.01,3105.4,3105.3,3.2203]
[1732028091189,0.01,3105.4,3105.2,3.2204]
[1732028091391,0.01,3105.4,3105.2,6.4408]
[1732028091586,0.01,3105.4,3104.3,0.97887986]
[1732028091587,0.01,3105.0,3104.8,3.2208]
[1732028091825,0.01,3105.0,3104.9,3.22071]
[1732028092732,0.01,3104.8,3104.1,3.87162593]
[1732028092929,1.35274536,3105.0,3104.8,3.22081]
[1732028093228,0.01,3104.7,3104.1,3.87162593]
[1732028093387,0.01,3104.7,3104.4,6.44228]
[1732028093594,0.01,3104.7,3104.1,1.41989505]
[1732028093819,0.01,3104.1,3103.8,0.9405]
[1732028094045,0.01,3103.9,3103.3,0.9405]
[1732028094327,0.01,3103.9,3103.5,3.22207]
[1732028094490,0.01,3103.9,3103.8,3.22185]
[1732028094891,0.01,3103.9,3103.7,3.22191]
[1732028095195,0.01,3103.9,3103.6,3.22202]
[1732028095196,0.01,3103.3,3102.9,0.39861814]
[1732028095393,0.01,3103.3,3103.2,3.22248]
[1732028095837,0.01,3103.3,3103.0,3.22258]
[1732028096274,0.01,3103.1,3102.8,0.9038]
[1732028096413,0.01,3103.1,3102.7,3.22294]
[1732028096935,0.01,3102.9,3102.6,3.22309]
[1732028097145,0.01,3102.9,3102.1,0.75345275]
[1732028097146,0.4189,3102.3,3102.2,0.6489288]
[1732028097436,0.01,3101.8,3101.5,3.22421]
[1732028097597,0.01,3101.7,3101.3,0.9121]
[1732028097799,0.01,3101.7,3101.6,3.22414]
[1732028098238,3.22333,3102.4,3101.0,1.15564288]
[1732028098239,0.4289,3101.5,3101.0,1.15564288]
[1732028098408,0.4289,3101.5,3100.9,3.82480869]
[1732028098409,0.01,3101.3,3101.2,3.22454]
[1732028098741,0.01,3101.3,3101.1,3.22458]
[1732028098944,0.01,3101.3,3101.2,3.22455]
[1732028100195,0.01,3101.3,3101.0,3.22467]
[1732028100434,0.01,3101.3,3101.2,3.22455]
[1732028100734,3.56737884,3101.9,3100.7,3.22503]
[1732028100933,0.34349884,3101.9,3101.4,3.2243]
[1732028101148,0.34349884,3101.9,3101.5,3.22416]
[1732028101598,0.34349884,3101.9,3101.7,3.22395]
[1732028101802,0.34349884,3101.9,3101.2,3.2245]
[1732028101997,0.34349884,3101.9,3101.4,3.22427]
[1732028102234,0.34349884,3101.9,3101.6,3.22413]
[1732028102804,0.34349884,3101.9,3101.7,3.22402]
[1732028103039,3.0,3102.4,3101.7,0.644815]
[1732028103201,0.6502844,3103.0,3101.5,0.9487]
[1732028103202,0.01,3102.9,3101.5,0.9487]
[1732028103549,3.23282,3102.9,3102.1,3.22359]
[1732028103695,3.22302,3102.7,3101.9,3.22375]
[1732028103902,0.01,3102.7,3101.6,3.22404]
[1732028104223,3.22344,3102.3,3101.6,3.22408]
[1732028104436,3.22323,3102.5,3101.6,0.644823]
[1732028104621,6.5678,3102.6,3102.0,3.22369]
[1732028104946,0.3447,3102.6,3102.0,0.644744]
[1732028105099,0.3447,3102.6,3102.3,3.22335]
[1732028105439,0.3447,3103.2,3102.5,3.2232]
[1732028105598,0.3447,3103.2,3102.7,3.22292]
[1732028105795,0.3447,3103.2,3103.0,3.22259]
[1732028106096,0.01,3103.8,3103.0,3.22259]
[1732028106097,0.3447,3103.8,3103.0,3.22259]
[1732028106602,0.3447,3103.8,3103.0,3.544909]
[1732028106956,0.3447,3103.8,3103.2,3.22247]
[1732028107160,0.3447,3103.8,3103.4,3.22224]
[1732028107317,0.3447,3103.8,3103.6,3.22201]
[1732028107520,0.3547,3103.8,3102.6,0.9122]
[1732028107856,0.3547,3103.8,3101.7,3.23403]
[1732028107857,3.22284,3102.9,3102.3,3.22332]
[1732028108060,3.22321,3102.5,3101.6,0.9464]
[1732028108200,3.223,3102.7,3101.6,0.9464]
[1732028108515,0.3447,3102.8,3102.3,3.22332]
[1732028108955,0.3447,3102.8,3102.1,3.22351]
[1732028109164,0.3447,3102.8,3101.6,0.9464]
[1732028109341,0.3447,3102.8,3102.7,3.22299]
[1732028109543,0.3447,3102.8,3102.6,3.22308]
[1732028109544,3.0,3103.1,3102.6,3.22308]
[1732028109742,0.3447,3103.2,3101.6,0.9564]
[1732028110001,0.3447,3103.2,3102.7,3.22291]
[1732028110473,0.3447,3103.2,3103.0,3.22261]
[1732028110958,0.3447,3103.2,3102.7,3.22292]
[1732028111309,3.22318,3102.6,3102.0,3.22369]
[1732028111591,3.0,3102.7,3102.1,3.22353]
[1732028111752,3.22295,3102.8,3102.3,3.2234]
[1732028111753,3.22297,3102.8,3102.3,3.2234]
[1732028111945,0.3447,3102.9,3102.5,3.2232]
[1732028112288,0.3447,3102.9,3102.6,3.22303]
[1732028112491,0.3447,3102.9,3102.7,3.22299]
[1732028113196,3.56727,3103.2,3102.5,3.22317]
[1732028113380,3.22258,3103.1,3102.5,3.22317]
[1732028113696,3.3447,3103.2,3102.6,3.22303]
[1732028113861,3.2226,3103.1,3102.0,0.44922226]
[1732028114068,3.22279,3102.9,3102.1,3.22354]
[1732028114269,3.22265,3103.1,3102.3,3.22334]
[1732028114652,6.56722,3103.2,3102.3,3.22334]
[1732028114867,3.22276,3103.0,3102.3,3.22334]
[1732028115087,3.22258,3103.1,3102.3,3.22333]
[1732028115290,3.22258,3103.1,3102.5,3.22317]
[1732028115591,3.3447,3103.2,3102.5,3.22317]
[1732028115592,3.3447,3103.2,3102.6,3.22302]
[1732028115774,0.3447,3103.2,3102.6,3.22302]
[1732028116164,3.56719,3103.2,3102.6,3.22302]
[1732028116398,3.22273,3103.0,3102.0,3.22372]
[1732028116603,3.22273,3103.0,3102.4,3.22324]
[1732028116834,3.22273,3103.0,3102.4,6.44647]
[1732028117132,3.22273,3103.0,3102.5,3.22318]
[1732028118093,3.22273,3103.0,3102.5,3.22317]
[1732028118296,0.3447,3103.2,3102.5,0.644657]
[1732028118629,1.35274536,3103.9,3102.5,0.644657]
[1732028118630,0.3447,3103.5,3102.9,3.2227]
[1732028118837,3.22227,3103.4,3102.8,3.22286]
[1732028119013,0.3447,3103.5,3102.7,3.22295]
[1732028119014,3.56688,3103.5,3102.9,3.22269]
[1732028119328,0.3447,3103.5,3102.7,3.3842657]
[1732028119507,0.3447,3103.5,3102.2,0.9203]
[1732028119698,0.3447,3102.7,3102.1,3.22355]
[1732028119899,0.3447,3102.7,3102.3,3.22341]
[1732028120232,3.3447,3103.3,3102.3,0.644696]
[1732028120415,3.22249,3103.2,3102.6,3.22306]
[1732028120614,3.3447,3103.3,3102.6,3.22306]
[1732028120934,3.22248,3103.2,3102.6,3.22306]
[1732028121238,3.22248,3103.2,3102.5,3.22314]
[1732028121533,3.22272,3103.0,3102.3,3.22333]
[1732028121833,3.22252,3103.2,3102.4,3.22324]
[1732028122039,3.22252,3103.2,3102.3,0.322346]
[1732028122040,3.22249,3103.2,3102.3,0.322346]
[1732028122238,3.22249,3103.2,3102.5,3.22311]
[1732028122524,3.22249,3103.2,3102.6,3.22309]
[1732028122525,6.44505,3103.2,3102.6,3.22309]
[1732028122725,3.56708,3103.3,3102.8,3.22287]
[1732028122927,0.3447,3103.3,3102.5,3.22315]
[1732028123091,3.22248,3103.2,3102.6,3.22302]
[1732028123634,3.22248,3103.2,3102.4,3.22322]
[1732028123635,3.22275,3103.0,3102.4,3.22322]
[1732028123799,3.22275,3103.0,3102.2,3.22347]
[1732028124220,6.44553,3103.0,3102.4,3.2233]
[1732028124821,3.22286,3102.9,3102.2,3.22342]
[1732028125143,3.22286,3102.9,3102.3,3.22332]
[1732028125341,3.2229,3102.8,3102.2,3.22346]
[1732028125690,3.22315,3102.6,3102.0,3.22363]
[1732028125884,3.22339,3102.4,3101.8,3.22389]
[1732028126244,3.2231,3102.6,3101.9,3.22382]
[1732028126423,3.22359,3102.2,3101.6,3.22407]
[1732028126590,0.3447,3102.1,3101.4,3.22426]
[1732028126789,3.22373,3102.0,3101.4,3.90281464]
[1732028127102,3.22401,3101.8,3101.0,3.22466]
[1732028127304,3.22401,3101.8,3100.8,0.9146]
[1732028127305,3.22401,3101.8,3101.2,3.22447]
[1732028127501,3.22394,3101.8,3100.8,0.9146]
[1732028127752,3.22376,3102.0,3100.8,0.9146]
[1732028127916,3.22376,3102.0,3101.2,3.2245]
[1732028128116,3.22376,3102.0,3101.2,3.22446]
[1732028128326,3.22372,3102.0,3101.5,3.22415]
[1732028128725,6.56833,3102.1,3101.5,3.55775659]
[1732028128931,3.22375,3102.0,3101.5,3.22415]
[1732028129110,3.22375,3102.0,3101.5,6.44833]
[1732028129323,3.3447,3102.1,3101.5,3.22415]
[1732028129528,3.3447,3102.1,3101.6,3.22405]
[1732028129735,3.3447,3102.1,3101.7,3.224]
[1732028129946,0.3447,3102.1,3101.5,3.22415]
[1732028130166,3.22497,3100.8,3100.7,0.63275109]
[1732028130458,3.23485,3101.0,3099.7,3.22605]
[1732028130459,0.3447,3100.4,3099.7,3.22605]
[1732028130607,0.3447,3100.4,3099.8,3.22598]
[1732028130808,3.22566,3100.2,3099.5,4.10763]
[1732028131034,3.2257,3100.1,3099.1,0.8814]
[1732028131207,3.22566,3100.2,3097.9,0.01]
[1732028131208,3.22674,3099.1,3097.9,0.01]
[1732028131408,0.01,3100.2,3097.9,0.01]
[1732028131409,3.0,3100.0,3098.5,0.8814]
[1732028131726,3.22583,3100.0,3099.2,3.22655]
[1732028131911,3.22583,3100.0,3099.0,3.22682]
[1732028131912,0.01074046,3099.9,3099.3,3.22653]
[1732028132115,0.01074046,3099.9,3099.3,3.22652]
[1732028132350,3.22609,3099.8,3099.1,3.549382]
[1732028132559,3.43382,3100.0,3099.1,3.2267]
[1732028132859,0.01490333,3099.7,3099.1,3.2267]
[1732028133026,0.208,3100.0,3099.1,3.2267]
[1732028133027,3.22604,3099.8,3099.1,3.2267]
[1732028133227,0.01698496,3099.6,3099.2,3.22656]
[1732028133570,0.01490333,3099.7,3099.1,3.2267]
[1732028133858,0.01906673,3099.5,3099.2,3.22656]
[1732028134062,0.01698496,3099.6,3099.2,0.354923]
[1732028134211,0.208,3100.4,3099.3,3.22653]
[1732028134414,3.2257,3100.1,3099.1,3.22665]
[1732028134661,3.2257,3100.1,3099.3,3.22651]
[1732028134954,0.208,3100.4,3098.9,3.22693]
[1732028134955,3.22621,3099.7,3098.9,3.22693]
[1732028135158,3.22644,3099.4,3098.7,3.22715]
[1732028135560,0.02323068,3099.3,3098.7,3.22715]
[1732028135713,3.24985068,3099.3,3098.7,3.2271]
[1732028135914,3.22681,3099.1,3098.5,3.22736]
[1732028136162,3.22681,3099.1,3098.4,3.22738]
[1732028136366,3.22616,3099.7,3097.7,0.01]
[1732028136367,3.22717,3098.7,3097.7,0.01]
[1732028136516,0.208,3098.9,3098.3,3.22757]
[1732028136715,3.43496,3098.9,3098.3,3.22757]
[1732028137059,3.43496,3098.9,3097.9,3.22796]
[1732028137264,3.22706,3098.8,3098.1,3.22768]
[1732028137479,3.22706,3098.8,3097.5,0.9658]
[1732028137619,3.22706,3098.8,3097.2,3.82480869]
[1732028137620,3.22739,3098.5,3097.2,4.14327]
[1732028137812,3.22715,3098.7,3098.0,3.22787]
[1732028138014,3.22715,3098.7,3097.3,0.38248087]
[1732028138015,0.208,3098.8,3097.3,0.38248087]
[1732028138245,0.208,3098.8,3096.9,4.71405298]
[1732028138473,0.208,3098.8,3097.1,3.23874]
[1732028138618,3.22757,3098.4,3097.6,3.2283]
[1732028139264,0.208,3098.1,3097.1,3.22879]
[1732028139560,0.208,3098.1,3097.4,3.22848]
[1732028139757,0.208,3098.1,3096.9,0.1400097]
[1732028139957,3.2281,3097.8,3097.1,3.2288]
[1732028140158,3.22788,3098.0,3096.9,0.1400097]
[1732028140159,3.22788,3098.0,3097.2,3.22872]
[1732028140467,0.208,3098.1,3097.4,3.22843]
[1732028140626,0.208,3098.1,3097.7,3.22818]
[1732028141015,0.208,3098.1,3097.5,3.22833]
[1732028141550,0.208,3098.1,3097.6,3.22829]
[1732028141873,3.22792,3098.0,3097.4,3.22841]
[1732028142165,3.43583,3098.1,3097.4,3.22841]
[1732028142366,3.22789,3098.0,3097.2,6.45735]
[1732028142530,3.22808,3097.9,3097.3,3.22859]
[1732028142751,3.43583,3098.1,3097.3,3.22859]
[1732028142752,3.22789,3098.0,3097.3,3.22859]
[1732028142949,0.208,3098.1,3096.9,1.51421767]
[1732028142950,0.208,3098.1,3097.0,3.22893]
[1732028143153,0.208,3098.1,3097.8,3.22809]
[1732028143361,0.208,3098.1,3098.0,3.22788]
[1732028143561,0.208,3098.6,3097.6,3.22822]
[1732028143772,3.43473,3099.2,3098.5,3.22736]
[1732028143986,3.43473,3099.2,3097.4,3.22851]
[1732028143987,0.208,3098.5,3097.9,3.22792]
[1732028144279,0.208,3098.5,3097.3,0.8905]
[1732028144580,0.04197507,3098.4,3098.3,3.22756]
[1732028144881,0.208,3098.9,3098.2,3.22761]
[1732028145048,0.03364288,3098.8,3098.7,3.22707]
[1732028145394,0.208,3099.3,3099.1,3.22667]
[1732028145598,3.22604,3099.8,3099.2,3.22663]
[1732028145599,0.208,3099.7,3099.2,3.22663]
[1732028146390,0.208,3099.7,3098.6,3.549977]
[1732028146596,0.208,3099.7,3099.3,3.22645]
[1732028147099,0.208,3099.7,3099.4,3.2264]
[1732028147612,0.208,3099.7,3099.3,3.22645]
[1732028147760,0.208,3099.7,3099.1,3.22667]
[1732028147955,3.22654,3099.3,3098.5,3.22726]
[1732028148161,3.22659,3099.3,3098.4,3.22747]
[1732028148458,3.0,3099.4,3098.6,3.22719]
[1732028148773,6.22643,3099.4,3098.8,3.22704]
[1732028148968,3.0,3099.4,3098.8,3.22704]
[1732028149170,3.0,3099.6,3098.9,3.22694]
[1732028149390,6.66032,3099.7,3098.9,3.22693]
[1732028149391,3.0,3099.4,3098.9,3.22693]
[1732028149602,3.0,3099.4,3098.6,3.22722]
[1732028149761,0.02323068,3099.3,3098.7,3.22709]
[1732028149962,0.02323068,3099.3,3099.0,3.22682]
[1732028150189,3.0,3099.6,3099.0,3.22682]
[1732028150405,0.02531285,3099.2,3099.0,3.22682]
[1732028150724,3.43416,3099.7,3099.1,3.22674]
[1732028150725,3.208,3099.7,3099.1,3.22674]
[1732028151001,0.208,3099.7,3098.9,3.22692]
[1732028151361,0.208,3099.7,3099.0,3.22684]
[1732028151785,0.208,3099.7,3099.1,3.2267]
[1732028151957,0.208,3099.7,3098.5,3.22731]
[1732028151958,0.208,3099.7,3099.2,3.22661]
[1732028152779,0.208,3099.7,3099.3,3.2265]
[1732028153313,0.208,3099.7,3099.2,6.45317]
[1732028153513,0.208,3099.7,3099.3,3.22647]
[1732028153664,0.208,3099.7,3099.4,3.22641]
[1732028154122,0.208,3099.7,3099.2,3.22656]
[1732028154775,0.208,3099.7,3099.3,3.22648]
[1732028155324,0.208,3099.7,3099.4,3.22642]
[1732028155674,6.43376,3100.1,3099.5,3.22628]
[1732028156174,3.208,3100.1,3099.5,3.22628]
[1732028156370,3.4337,3100.1,3099.5,3.22625]
[1732028156576,3.0,3100.0,3099.5,3.22625]
[1732028157009,6.22582,3100.0,3099.3,3.22651]
[1732028157178,3.22633,3099.5,3098.8,3.22699]
[1732028157378,3.22633,3099.5,3098.9,3.22694]
[1732028157787,3.22613,3099.7,3099.0,3.22682]
[1732028157973,6.22603,3099.8,3099.2,3.22661]
[1732028158272,3.22624,3099.6,3099.0,3.22682]
[1732028158475,3.22635,3099.5,3098.9,3.22693]
[1732028158711,3.22612,3099.7,3099.0,3.22683]
[1732028158911,3.22612,3099.7,3099.0,3.22677]
[1732028159113,3.22612,3099.7,3099.0,3.22676]
[1732028159323,3.0,3099.8,3098.4,0.9238]
[1732028159324,3.22647,3099.4,3098.4,0.9238]
[1732028159482,3.22688,3099.0,3098.3,3.22748]
[1732028159681,3.22688,3099.0,3098.4,3.22742]
[1732028159883,3.22688,3099.0,3098.5,3.22735]
[1732028160083,3.22698,3098.9,3098.3,3.22748]
[1732028160288,3.22675,3099.1,3098.4,3.22746]
[1732028160507,3.22675,3099.1,3098.3,3.22748]
[1732028160508,3.22701,3098.9,3098.3,3.22756]
[1732028160687,3.22688,3099.0,3098.4,3.22744]
[1732028160874,3.208,3099.4,3098.6,3.22726]
[1732028161210,3.0,3099.2,3098.6,3.22719]
[1732028161528,3.22687,3099.0,3098.4,3.22742]
[1732028161734,3.22687,3099.0,3098.5,3.22736]
[1732028162047,3.0,3099.2,3098.4,3.22742]
[1732028162048,6.2267,3099.2,3098.6,3.22724]
[1732028162194,3.0,3099.3,3098.0,4.15263]
[1732028162398,3.43446,3099.4,3097.7,0.9366]
[1732028162399,3.22757,3098.4,3097.7,0.9366]
[1732028162611,3.22726,3098.6,3098.0,3.2278]
[1732028162832,0.2092,3098.7,3098.2,3.22765]
[1732028162833,3.2092,3098.7,3098.2,3.22765]
[1732028163191,3.22734,3098.6,3098.0,3.22782]
[1732028163394,3.22734,3098.6,3097.7,0.9366]
[1732028164002,3.22734,3098.6,3098.0,3.22781]
[1732028164342,3.22734,3098.6,3097.8,3.22809]
[1732028164548,0.03989182,3098.5,3098.0,3.22781]
[1732028165042,0.03989182,3098.5,3097.7,0.9366]
[1732028165254,0.03989182,3098.5,3098.0,3.22788]
[1732028165491,6.2268,3099.1,3098.5,3.22727]
[1732028165652,6.2268,3099.1,3098.4,4.13937]
[1732028165835,3.22684,3099.0,3097.4,4.22108652]
[1732028166192,3.22712,3098.8,3098.2,3.22766]
[1732028166491,3.22723,3098.7,3098.1,3.22772]
[1732028166701,3.22807,3097.9,3097.4,0.9119]
[1732028166899,3.22807,3097.9,3097.2,3.22865]
[1732028167039,0.2092,3098.1,3096.9,1.0896097]
[1732028167040,0.2092,3098.1,3097.1,3.22879]
[1732028167238,3.22806,3097.9,3097.2,6.45731]
[1732028167574,3.22806,3097.9,3097.4,3.22848]
[1732028167575,3.22799,3097.9,3097.4,3.22848]
[1732028167959,6.43707,3098.1,3097.5,3.2284]
[1732028168488,6.43707,3098.1,3097.4,3.22842]
[1732028168643,3.228,3097.9,3097.2,3.22865]
[1732028168843,6.43704,3098.1,3097.4,3.22844]
[1732028169145,3.22761,3098.3,3097.5,3.22834]
[1732028169297,3.22761,3098.3,3097.5,3.551174]
[1732028169451,3.22784,3098.1,3097.5,3.22834]
[1732028169651,3.43659,3098.5,3097.3,0.55]
[1732028169875,3.43659,3098.5,3097.9,3.22796]
[1732028170195,3.43659,3098.5,3097.2,0.905]
[1732028170196,0.2092,3098.8,3098.1,3.22769]
[1732028170410,0.2092,3099.2,3098.6,3.22721]
[1732028170605,3.43587,3099.2,3098.6,3.22721]
[1732028170751,3.22674,3099.1,3098.2,3.22762]
[1732028171103,0.2092,3099.2,3098.2,3.22762]
[1732028171104,3.22694,3099.0,3098.2,3.22762]
[1732028171399,3.22694,3099.0,3098.2,3.22759]
[1732028171556,0.2092,3099.2,3098.2,3.640849]
[1732028171756,3.22738,3098.5,3098.0,0.905]
[1732028172065,0.2092,3098.4,3097.3,3.22855]
[1732028172264,0.2092,3098.4,3097.1,4.62653184]
[1732028172265,3.2282,3097.8,3097.1,4.62653184]
[1732028172452,3.2282,3097.8,3097.1,0.9453]
[1732028172652,3.2282,3097.8,3096.9,0.1400097]
[1732028172653,3.22861,3097.4,3096.9,0.1400097]
[1732028173567,0.2092,3097.7,3096.9,0.1400097]
[1732028173879,3.22883,3097.1,3096.9,0.1400097]
[1732028174084,3.99841,3096.8,3095.2,0.9417]
[1732028174288,3.0,3096.4,3095.7,3.23021]
[1732028174499,3.22993,3096.1,3095.2,0.9417]
[1732028174820,3.22993,3096.1,3094.4,0.01]
[1732028174821,3.43938,3095.9,3095.1,3.23084]
[1732028175020,3.22994,3096.1,3094.9,3.23112]
[1732028175318,3.23004,3096.0,3095.2,3.23073]
[1732028175628,0.2092,3096.3,3094.8,0.9417]
[1732028175912,3.22997,3096.1,3095.1,3.2309]
[1732028176069,3.22999,3096.0,3094.8,0.9417]
[1732028176413,3.22999,3096.0,3095.4,3.23057]
[1732028176711,3.22999,3096.0,3095.3,3.23069]
[1732028176907,3.22999,3096.0,3095.2,3.2308]
[1732028177066,3.22999,3096.0,3095.3,3.23066]
[1732028177510,3.22977,3096.2,3095.3,3.23066]
[1732028177673,0.2092,3096.3,3095.7,3.23022]
[1732028178088,3.22953,3096.5,3095.8,3.23016]
[1732028178415,3.0,3096.4,3095.9,3.23006]
[1732028178735,0.2092,3096.7,3095.9,3.23005]
[1732028178872,3.0,3096.5,3095.9,3.23005]
[1732028179224,3.43846,3096.7,3095.9,3.23005]
[1732028179511,3.43846,3096.7,3096.0,3.22992]
[1732028179715,0.0376766,3096.6,3096.0,3.22992]
[1732028179883,3.2670666,3096.6,3095.9,3.23]
[1732028180086,3.22945,3096.5,3095.9,3.23]
[1732028180271,0.0376766,3096.6,3095.7,0.9079]
[1732028180470,3.22904,3096.9,3096.3,3.22964]
[1732028180726,0.0376766,3096.5,3096.1,3.22983]
[1732028180870,3.2092,3097.1,3095.8,0.413828]
[1732028181068,0.0376766,3096.4,3096.3,3.22966]
[1732028181312,3.0,3096.9,3096.3,3.22966]
[1732028181527,0.0376766,3096.4,3096.3,3.22966]
[1732028181668,0.2092,3097.1,3096.7,3.22923]
[1732028181872,3.22862,3097.3,3096.7,3.22923]
[1732028182112,3.43768,3097.5,3096.8,3.22906]
[1732028182264,3.43768,3097.5,3095.8,3.23016]
[1732028182265,3.22851,3097.4,3095.9,0.9476]
[1732028182468,0.2092,3097.5,3096.4,3.22955]
[1732028182469,3.22902,3097.0,3096.4,3.22955]
[1732028182669,3.22878,3097.2,3096.2,3.22976]
[1732028182670,3.22873,3097.2,3096.2,3.22976]
[1732028182895,0.2192,3097.5,3095.9,0.9476]
[1732028183124,3.22851,3097.4,3096.1,3.2298]
[1732028183278,0.01,3097.5,3095.9,0.9476]
[1732028183279,3.22916,3096.8,3095.9,0.9476]
[1732028183471,0.2092,3097.3,3095.5,0.8972]
[1732028183472,0.2092,3096.9,3095.5,0.8972]
[1732028183671,3.22943,3096.6,3095.9,3.23001]
[1732028183970,3.0,3096.7,3096.0,3.22989]
[1732028184179,3.22952,3096.5,3095.8,3.23015]
[1732028184424,3.22937,3096.6,3095.6,3.23037]
[1732028184571,3.22937,3096.6,3095.9,3.23007]
[1732028185015,3.0,3096.7,3095.7,3.23027]
[1732028185185,0.2092,3096.6,3095.5,3.23047]
[1732028185389,3.22977,3096.2,3095.5,3.23047]
[1732028185723,3.22957,3096.4,3095.7,3.23019]
[1732028185910,3.22969,3096.3,3095.7,3.23019]
[1732028186451,3.22977,3096.2,3095.5,3.23042]
[1732028186918,3.22977,3096.2,3095.3,0.323079]
[1732028187215,3.22976,3096.2,3095.7,3.23027]
[1732028187715,3.22976,3096.2,3095.5,3.23046]
[1732028187716,3.22976,3096.2,3095.6,3.23037]
[1732028187937,0.2092,3096.6,3095.2,0.9693]
[1732028188076,3.22985,3096.2,3095.5,3.2304]
[1732028188278,3.22963,3096.4,3095.8,3.23013]
[1732028188491,3.22963,3096.4,3095.3,3.2307]
[1732028188492,3.2092,3096.6,3095.7,3.2302]
[1732028188688,3.0,3096.4,3095.9,3.22999]
[1732028188876,3.2092,3096.6,3095.9,3.22999]
[1732028189077,0.2092,3096.6,3095.6,3.23039]
[1732028189277,0.2092,3096.6,3096.1,3.22977]
[1732028189581,0.2092,3097.1,3096.0,3.22997]
[1732028189801,3.22853,3097.4,3096.8,3.22904]
[1732028190003,0.2092,3097.6,3097.0,3.22891]
[1732028190223,0.2092,3097.6,3096.8,3.22908]
[1732028190224,3.22842,3097.5,3096.9,3.22901]
[1732028190625,3.22866,3097.3,3096.8,3.22908]
[1732028190836,3.22866,3097.3,3096.6,7.35436]
[1732028191119,3.22852,3097.4,3096.8,3.22907]
[1732028191418,3.22852,3097.4,3096.6,4.12506]
[1732028191419,3.22876,3097.2,3096.6,4.12506]
[1732028191589,3.22854,3097.4,3096.6,4.1251]
[1732028191789,3.22854,3097.4,3096.8,3.22906]
[1732028192203,3.43755,3097.6,3097.0,3.2289]
[1732028192499,3.43755,3097.6,3096.8,3.22904]
[1732028192705,3.43755,3097.6,3097.2,3.22869]
[1732028192706,0.2092,3097.6,3097.2,3.22869]
[1732028193024,3.0,3097.7,3097.1,3.22872]
[1732028193227,3.0,3097.7,3096.6,1.308331]
[1732028193382,6.22826,3097.7,3097.1,3.22879]
[1732028193584,3.0,3097.7,3096.6,0.8958]